fUST/lending_fUST_20260530
["ID","MTS","AMOUNT","RATE_DAILY","PERIOD"]
[423397332,1780084244000,-500.0,0.00012194,2]
[423397338,1780084244000,-500.0,0.00012194,2]
[423397337,1780084244000,-500.0,0.00012194,2]
[423397336,1780084244000,-500.0,0.00012194,2]
[423397334,1780084244000,-678.0,0.00012194,2]
[423397343,1780084244000,-501.53,0.00012366,2]
[423397341,1780084244000,-1190.19,0.00012366,2]
[423397340,1780084244000,-672.48,0.00012366,2]
[423397333,1780084244000,-500.0,0.00012194,2]
[423397342,1780084244000,-500.0,0.00012366,2]
[423397344,1780084244000,-500.0,0.00012366,2]
[423397339,1780084244000,-164.9255,0.00012232,2]
[423397318,1780084244000,-500.0,0.00012194,2]
[423397335,1780084244000,-500.0,0.00012194,2]
[423397317,1780084244000,-500.0,0.00012194,2]
[423397292,1780084244000,-500.0,0.00012193,2]
[423397315,1780084244000,-500.0,0.00012194,2]
[423397291,1780084244000,-500.0,0.00012193,2]
[423397286,1780084244000,-500.0,0.00012193,2]
[423397285,1780084244000,-500.0,0.00012193,2]
[423397290,1780084244000,-500.0,0.00012193,2]
[423397287,1780084244000,-500.0,0.00012193,2]
[423397288,1780084244000,-500.0,0.00012193,2]
[423397289,1780084244000,-500.0,0.00012193,2]
[423397294,1780084244000,-500.0,0.00012193,2]
[423397305,1780084244000,-500.0,0.00012193,2]
[423397304,1780084244000,-500.0,0.00012193,2]
[423397297,1780084244000,-500.0,0.00012193,2]
[423397295,1780084244000,-500.0,0.00012193,2]
[423397293,1780084244000,-500.0,0.00012193,2]
[423397296,1780084244000,-500.0,0.00012193,2]
[423397298,1780084244000,-500.0,0.00012193,2]
[423397301,1780084244000,-500.0,0.00012193,2]
[423397299,1780084244000,-500.0,0.00012193,2]
[423397300,1780084244000,-500.0,0.00012193,2]
[423397303,1780084244000,-500.0,0.00012193,2]
[423397302,1780084244000,-500.0,0.00012193,2]
[423397306,1780084244000,-500.0,0.00012193,2]
[423397308,1780084244000,-500.0,0.00012193,2]
[423397311,1780084244000,-500.0,0.00012193,2]
[423397309,1780084244000,-500.0,0.00012193,2]
[423397312,1780084244000,-500.0,0.00012193,2]
[423397310,1780084244000,-500.0,0.00012193,2]
[423397313,1780084244000,-500.0,0.00012193,2]
[423397314,1780084244000,-500.0,0.00012193,2]
[423397307,1780084244000,-500.0,0.00012193,2]
[423397316,1780084244000,-500.0,0.00012194,2]
[423397347,1780084244000,-500.0,0.00012366,2]
[423397363,1780084244000,-1401.86,0.00012367,2]
[423397348,1780084244000,-282.96,0.00012366,2]
[423397395,1780084244000,-500.0,0.00012369,2]
[423397397,1780084244000,-2345.73,0.00012369,2]
[423397401,1780084244000,-500.0,0.00012369,2]
[423397399,1780084244000,-500.0,0.00012369,2]
[423397407,1780084244000,-606.57,0.00012369,2]
[423397403,1780084244000,-654.99,0.00012369,2]
[423397411,1780084244000,-821.100533,0.00012464,2]
[423397409,1780084244000,-250.0,0.00012422,2]
[423397405,1780084244000,-500.0,0.00012369,2]
[423397413,1780084244000,-500.0,0.00012467,2]
[423397415,1780084244000,-500.0,0.00012467,2]
[423397417,1780084244000,-500.0,0.00012467,2]
[423397418,1780084244000,-500.0,0.00012467,2]
[423397393,1780084244000,-500.0,0.00012369,2]
[423397420,1780084244000,-500.0,0.00012467,2]
[423397424,1780084244000,-500.0,0.00012467,2]
[423397428,1780084244000,-500.0,0.00012467,2]
[423397426,1780084244000,-500.0,0.00012467,2]
[423397432,1780084244000,-500.0,0.00012467,2]
[423397430,1780084244000,-500.0,0.00012467,2]
[423397436,1780084244000,-500.0,0.00012467,2]
[423397439,1780084244000,-500.0,0.00012467,2]
[423397438,1780084244000,-500.0,0.00012467,2]
[423397434,1780084244000,-500.0,0.00012467,2]
[423397441,1780084244000,-500.0,0.00012467,2]
[423397443,1780084244000,-500.0,0.00012467,2]
[423397447,1780084244000,-500.0,0.00012467,2]
[423397349,1780084244000,-733.76,0.00012366,2]
[423397422,1780084244000,-500.0,0.00012467,2]
[423397391,1780084244000,-786.17,0.00012369,2]
[423397445,1780084244000,-500.0,0.00012467,2]
[423397380,1780084244000,-500.0,0.00012369,2]
[423397345,1780084244000,-500.0,0.00012366,2]
[423397353,1780084244000,-1164.9,0.00012367,2]
[423397354,1780084244000,-500.0,0.00012367,2]
[423397350,1780084244000,-583.62,0.00012366,2]
[423397352,1780084244000,-1353.93,0.00012367,2]
[423397351,1780084244000,-500.0,0.00012367,2]
[423397355,1780084244000,-500.0,0.00012367,2]
[423397357,1780084244000,-652.43,0.00012367,2]
[423397381,1780084244000,-456.15,0.00012369,2]
[423397359,1780084244000,-743.79,0.00012367,2]
[423397360,1780084244000,-677.48,0.00012367,2]
[423397362,1780084244000,-500.0,0.00012367,2]
[423397358,1780084244000,-500.0,0.00012367,2]
[423397366,1780084244000,-500.0,0.00012367,2]
[423397361,1780084244000,-1517.97,0.00012367,2]
[423397365,1780084244000,-1798.09,0.00012367,2]
[423397376,1780084244000,-500.0,0.00012369,2]
[423397364,1780084244000,-11644.4,0.00012367,2]
[423397378,1780084244000,-500.0,0.00012369,2]
[423397373,1780084244000,-500.0,0.00012369,2]
[423397371,1780084244000,-507.97,0.00012369,2]
[423397389,1780084244000,-500.0,0.00012369,2]
[423397385,1780084244000,-1811.41,0.00012369,2]
[423397383,1780084244000,-1224.6738,0.00012369,2]
[423397372,1780084244000,-500.0,0.00012369,2]
[423397368,1780084244000,-498.83,0.00012369,2]
[423397370,1780084244000,-500.0,0.00012369,2]
[423397367,1780084244000,-277.24,0.00012368,2]
[423397369,1780084244000,-500.0,0.00012369,2]
[423397387,1780084244000,-500.0,0.00012369,2]
[423397525,1780084245000,-500.0,0.0001264,2]
[423397533,1780084245000,-733.76,0.0001264,2]
[423397527,1780084245000,-200.6,0.0001264,2]
[423397521,1780084245000,-500.0,0.0001264,2]
[423397523,1780084245000,-501.53,0.0001264,2]
[423397515,1780084245000,-639.04797402,0.00012598,2]
[423397510,1780084245000,-500.0,0.00012468,2]
[423397508,1780084245000,-500.0,0.00012468,2]
[423397506,1780084245000,-678.0,0.00012468,2]
[423397519,1780084245000,-1190.19,0.0001264,2]
[423397517,1780084245000,-672.48,0.0001264,2]
[423397511,1780084245000,-500.0,0.00012468,2]
[423397536,1780084245000,-500.0,0.00012641,2]
[423397560,1780084245000,-1798.09,0.00012641,2]
[423397529,1780084245000,-500.0,0.0001264,2]
[423397534,1780084245000,-583.62,0.0001264,2]
[423397538,1780084245000,-1353.93,0.00012641,2]
[423397542,1780084245000,-500.0,0.00012641,2]
[423397540,1780084245000,-1164.9,0.00012641,2]
[423397544,1780084245000,-500.0,0.00012641,2]
[423397556,1780084245000,-500.0,0.00012641,2]
[423397555,1780084245000,-1517.97,0.00012641,2]
[423397558,1780084245000,-11644.4,0.00012641,2]
[423397557,1780084245000,-1401.86,0.00012641,2]
[423397548,1780084245000,-652.43,0.00012641,2]
[423397546,1780084245000,-910.32,0.00012641,2]
[423397513,1780084245000,-500.0,0.00012468,2]
[423397531,1780084245000,-500.0,0.0001264,2]
[423397500,1780084245000,-500.0,0.00012468,2]
[423397483,1780084245000,-500.0,0.00012468,2]
[423397504,1780084245000,-500.0,0.00012468,2]
[423397550,1780084245000,-500.0,0.00012641,2]
[423397449,1780084245000,-500.0,0.00012467,2]
[423397450,1780084245000,-500.0,0.00012467,2]
[423397454,1780084245000,-500.0,0.00012467,2]
[423397452,1780084245000,-500.0,0.00012467,2]
[423397455,1780084245000,-500.0,0.00012467,2]
[423397465,1780084245000,-500.0,0.00012467,2]
[423397457,1780084245000,-500.0,0.00012467,2]
[423397459,1780084245000,-500.0,0.00012467,2]
[423397466,1780084245000,-500.0,0.00012467,2]
[423397461,1780084245000,-500.0,0.00012467,2]
[423397463,1780084245000,-500.0,0.00012467,2]
[423397479,1780084245000,-500.0,0.00012468,2]
[423397502,1780084245000,-500.0,0.00012468,2]
[423397481,1780084245000,-500.0,0.00012468,2]
[423397473,1780084245000,-431.89249027,0.00012468,2]
[423397475,1780084245000,-500.0,0.00012468,2]
[423397468,1780084245000,-643.26,0.00012467,2]
[423397472,1780084245000,-500.0,0.00012468,2]
[423397485,1780084245000,-500.0,0.00012468,2]
[423397477,1780084245000,-585.21612089,0.00012468,2]
[423397487,1780084245000,-500.0,0.00012468,2]
[423397492,1780084245000,-500.0,0.00012468,2]
[423397490,1780084245000,-500.0,0.00012468,2]
[423397489,1780084245000,-500.0,0.00012468,2]
[423397494,1780084245000,-500.0,0.00012468,2]
[423397496,1780084245000,-500.0,0.00012468,2]
[423397498,1780084245000,-500.0,0.00012468,2]
[423397470,1780084245000,-500.0,0.00012468,2]
[423397552,1780084245000,-743.79,0.00012641,2]
[423397553,1780084245000,-677.48,0.00012641,2]
[423397603,1780084245000,-500.0,0.00012741,2]
[423397591,1780084245000,-500.0,0.00012741,2]
[423397596,1780084245000,-500.0,0.00012741,2]
[423397607,1780084245000,-500.0,0.00012741,2]
[423397606,1780084245000,-500.0,0.00012741,2]
[423397595,1780084245000,-500.0,0.00012741,2]
[423397608,1780084245000,-500.0,0.00012741,2]
[423397599,1780084245000,-500.0,0.00012741,2]
[423397597,1780084245000,-605.87,0.00012741,2]
[423397600,1780084245000,-500.0,0.00012741,2]
[423397601,1780084245000,-550.20752017,0.00012741,2]
[423397604,1780084245000,-500.0,0.00012741,2]
[423397602,1780084245000,-500.0,0.00012741,2]
[423397605,1780084245000,-500.0,0.00012741,2]
[423397589,1780084245000,-500.0,0.00012741,2]
[423397609,1780084245000,-500.0,0.00012741,2]
[423397613,1780084245000,-500.0,0.00012742,2]
[423397614,1780084245000,-500.0,0.00012742,2]
[423397610,1780084245000,-500.0,0.00012741,2]
[423397619,1780084245000,-500.0,0.00012742,2]
[423397612,1780084245000,-500.0,0.00012741,2]
[423397621,1780084245000,-500.0,0.00012742,2]
[423397615,1780084245000,-500.0,0.00012742,2]
[423397617,1780084245000,-500.0,0.00012742,2]
[423397620,1780084245000,-500.0,0.00012742,2]
[423397616,1780084245000,-500.0,0.00012742,2]
[423397618,1780084245000,-500.0,0.00012742,2]
[423397622,1780084245000,-500.0,0.00012742,2]
[423397562,1780084245000,-409.47,0.00012643,2]
[423397611,1780084245000,-500.0,0.00012741,2]
[423397592,1780084245000,-500.0,0.00012741,2]
[423397598,1780084245000,-500.0,0.00012741,2]
[423397590,1780084245000,-500.0,0.00012741,2]
[423397568,1780084245000,-500.0,0.00012643,2]
[423397561,1780084245000,-500.0,0.00012641,2]
[423397564,1780084245000,-507.97,0.00012643,2]
[423397565,1780084245000,-500.0,0.00012643,2]
[423397567,1780084245000,-500.0,0.00012643,2]
[423397563,1780084245000,-500.0,0.00012643,2]
[423397566,1780084245000,-593.5,0.00012643,2]
[423397570,1780084245000,-1224.6738,0.00012643,2]
[423397580,1780084245000,-654.99,0.00012643,2]
[423397588,1780084245000,-500.0,0.00012741,2]
[423397576,1780084245000,-500.0,0.00012643,2]
[423397572,1780084245000,-166.9,0.00012643,2]
[423397575,1780084245000,-203.64,0.00012643,2]
[423397573,1780084245000,-500.0,0.00012643,2]
[423397581,1780084245000,-500.0,0.00012643,2]
[423397569,1780084245000,-590.4,0.00012643,2]
[423397586,1780084245000,-500.0,0.00012741,2]
[423397571,1780084245000,-1811.41,0.00012643,2]
[423397579,1780084245000,-500.0,0.00012643,2]
[423397578,1780084245000,-500.0,0.00012643,2]
[423397577,1780084245000,-2345.73,0.00012643,2]
[423397583,1780084245000,-500.0,0.00012741,2]
[423397582,1780084245000,-606.57,0.00012643,2]
[423397593,1780084245000,-423.47863348,0.00012741,2]
[423397594,1780084245000,-500.0,0.00012741,2]
[423397584,1780084245000,-500.0,0.00012741,2]
[423397587,1780084245000,-500.0,0.00012741,2]
[423397585,1780084245000,-500.0,0.00012741,2]
[423397574,1780084245000,-786.17,0.00012643,2]
[423397667,1780084246000,-500.0,0.00012917,2]
[423397663,1780084246000,-507.97,0.00012917,2]
[423397674,1780084246000,-500.0,0.00012917,2]
[423397665,1780084246000,-500.0,0.00012917,2]
[423397669,1780084246000,-1224.6738,0.00012917,2]
[423397664,1780084246000,-500.0,0.00012917,2]
[423397657,1780084246000,-500.0,0.00012915,2]
[423397658,1780084246000,-1401.86,0.00012915,2]
[423397656,1780084246000,-1517.97,0.00012915,2]
[423397654,1780084246000,-743.79,0.00012915,2]
[423397655,1780084246000,-677.48,0.00012915,2]
[423397671,1780084246000,-1811.41,0.00012917,2]
[423397662,1780084246000,-500.0,0.00012917,2]
[423397672,1780084246000,-500.0,0.00012917,2]
[423397688,1780084246000,-500.0,0.00013015,2]
[423397676,1780084246000,-500.0,0.00012917,2]
[423397675,1780084246000,-2345.73,0.00012917,2]
[423397677,1780084246000,-500.0,0.00012917,2]
[423397679,1780084246000,-500.0,0.00012917,2]
[423397689,1780084246000,-500.0,0.00013015,2]
[423397690,1780084246000,-500.0,0.00013015,2]
[423397678,1780084246000,-654.99,0.00012917,2]
[423397680,1780084246000,-606.57,0.00012917,2]
[423397684,1780084246000,-612.76,0.00013015,2]
[423397681,1780084246000,-821.100533,0.00012929,2]
[423397683,1780084246000,-500.0,0.00013015,2]
[423397682,1780084246000,-500.0,0.00013015,2]
[423397685,1780084246000,-500.0,0.00013015,2]
[423397653,1780084246000,-500.0,0.00012915,2]
[423397673,1780084246000,-786.17,0.00012917,2]
[423397660,1780084246000,-1798.09,0.00012915,2]
[423397623,1780084246000,-500.0,0.00012742,2]
[423397652,1780084246000,-652.43,0.00012915,2]
[423397631,1780084246000,-499.72099654,0.00012742,2]
[423397633,1780084246000,-527.61054272,0.00012742,2]
[423397634,1780084246000,-500.0,0.00012742,2]
[423397632,1780084246000,-500.0,0.00012742,2]
[423397624,1780084246000,-500.0,0.00012742,2]
[423397630,1780084246000,-678.0,0.00012742,2]
[423397626,1780084246000,-603.80782721,0.00012742,2]
[423397629,1780084246000,-500.0,0.00012742,2]
[423397628,1780084246000,-500.0,0.00012742,2]
[423397625,1780084246000,-500.0,0.00012742,2]
[423397627,1780084246000,-192.03,0.00012742,2]
[423397635,1780084246000,-246.5022116,0.00012758,2]
[423397640,1780084246000,-501.53,0.00012914,2]
[423397637,1780084246000,-672.48,0.00012914,2]
[423397639,1780084246000,-500.0,0.00012914,2]
[423397638,1780084246000,-1190.19,0.00012914,2]
[423397641,1780084246000,-500.0,0.00012914,2]
[423397642,1780084246000,-500.0,0.00012914,2]
[423397647,1780084246000,-1353.93,0.00012915,2]
[423397644,1780084246000,-733.76,0.00012914,2]
[423397645,1780084246000,-583.62,0.00012914,2]
[423397643,1780084246000,-500.0,0.00012914,2]
[423397648,1780084246000,-1164.9,0.00012915,2]
[423397646,1780084246000,-500.0,0.00012915,2]
[423397636,1780084246000,-151.09,0.000129,2]
[423397649,1780084246000,-500.0,0.00012915,2]
[423397651,1780084246000,-910.32,0.00012915,2]
[423397661,1780084246000,-500.0,0.00012915,2]
[423397659,1780084246000,-11644.4,0.00012915,2]
[423397650,1780084246000,-500.0,0.00012915,2]
[423397687,1780084246000,-500.0,0.00013015,2]
[423397792,1780084246000,-500.0,0.00013191,2]
[423397691,1780084246000,-634.75,0.00013015,2]
[423397750,1780084246000,-450.16237977,0.00013189,2]
[423397749,1780084246000,-652.43,0.00013189,2]
[423397741,1780084246000,-1164.9,0.00013189,2]
[423397752,1780084246000,-743.79,0.00013189,2]
[423397754,1780084246000,-677.48,0.00013189,2]
[423397757,1780084246000,-1517.97,0.00013189,2]
[423397759,1780084246000,-595.2,0.00013189,2]
[423397762,1780084246000,-11644.4,0.00013189,2]
[423397766,1780084246000,-500.0,0.00013189,2]
[423397764,1780084246000,-1798.09,0.00013189,2]
[423397768,1780084246000,-317.48,0.00013191,2]
[423397776,1780084246000,-1224.6738,0.00013191,2]
[423397771,1780084246000,-431.85,0.00013191,2]
[423397761,1780084246000,-1401.86,0.00013189,2]
[423397769,1780084246000,-507.97,0.00013191,2]
[423397773,1780084246000,-500.0,0.00013191,2]
[423397781,1780084246000,-786.17,0.00013191,2]
[423397779,1780084246000,-500.0,0.00013191,2]
[423397787,1780084246000,-500.0,0.00013191,2]
[423397788,1780084246000,-500.0,0.00013191,2]
[423397783,1780084246000,-549.16,0.00013191,2]
[423397778,1780084246000,-1811.41,0.00013191,2]
[423397785,1780084246000,-2345.73,0.00013191,2]
[423397790,1780084246000,-654.99,0.00013191,2]
[423397796,1780084246000,-300.0,0.00013277,2]
[423397799,1780084246000,-545.7,0.00013289,2]
[423397798,1780084246000,-360.0,0.00013277,2]
[423397794,1780084246000,-606.57,0.00013191,2]
[423397686,1780084246000,-500.0,0.00013015,2]
[423397743,1780084246000,-500.0,0.00013189,2]
[423397747,1780084246000,-910.32,0.00013189,2]
[423397774,1780084246000,-500.0,0.00013191,2]
[423397736,1780084246000,-583.62,0.00013188,2]
[423397694,1780084246000,-500.0,0.00013015,2]
[423397745,1780084246000,-500.0,0.00013189,2]
[423397695,1780084246000,-500.0,0.00013015,2]
[423397696,1780084246000,-500.0,0.00013015,2]
[423397697,1780084246000,-500.0,0.00013015,2]
[423397700,1780084246000,-500.0,0.00013015,2]
[423397704,1780084246000,-500.0,0.00013016,2]
[423397703,1780084246000,-384.12,0.00013016,2]
[423397698,1780084246000,-500.0,0.00013015,2]
[423397692,1780084246000,-500.0,0.00013015,2]
[423397701,1780084246000,-500.0,0.00013016,2]
[423397708,1780084246000,-500.0,0.00013016,2]
[423397718,1780084246000,-639.04797402,0.00013091,2]
[423397720,1780084246000,-720.0,0.00013125,2]
[423397722,1780084246000,-672.48,0.00013188,2]
[423397693,1780084246000,-500.0,0.00013015,2]
[423397724,1780084246000,-1190.19,0.00013188,2]
[423397706,1780084246000,-500.0,0.00013016,2]
[423397739,1780084246000,-1353.93,0.00013189,2]
[423397732,1780084246000,-500.0,0.00013188,2]
[423397731,1780084246000,-500.0,0.00013188,2]
[423397734,1780084246000,-733.76,0.00013188,2]
[423397729,1780084246000,-500.0,0.00013188,2]
[423397711,1780084246000,-500.0,0.00013016,2]
[423397738,1780084246000,-500.0,0.00013189,2]
[423397716,1780084246000,-500.0,0.00013016,2]
[423397713,1780084246000,-500.0,0.00013016,2]
[423397727,1780084246000,-501.53,0.00013188,2]
[423397709,1780084246000,-500.0,0.00013016,2]
[423397726,1780084246000,-500.0,0.00013188,2]
[423397714,1780084246000,-678.0,0.00013016,2]
[423397882,1780084247000,-500.0,0.00013465,2]
[423397893,1780084247000,-654.99,0.00013465,2]
[423397881,1780084247000,-1811.41,0.00013465,2]
[423397879,1780084247000,-1224.6738,0.00013465,2]
[423397863,1780084247000,-1517.97,0.00013463,2]
[423397873,1780084247000,-507.97,0.00013465,2]
[423397869,1780084247000,-1798.09,0.00013463,2]
[423397875,1780084247000,-500.0,0.00013465,2]
[423397871,1780084247000,-500.0,0.00013463,2]
[423397867,1780084247000,-11644.4,0.00013463,2]
[423397865,1780084247000,-1401.86,0.00013463,2]
[423397895,1780084247000,-500.0,0.00013465,2]
[423397877,1780084247000,-266.6,0.00013465,2]
[423397898,1780084247000,-614.01789843,0.000135,2]
[423397891,1780084247000,-500.0,0.00013465,2]
[423397901,1780084247000,-600.0,0.000135,2]
[423397884,1780084247000,-786.17,0.00013465,2]
[423397886,1780084247000,-2345.73,0.00013465,2]
[423397888,1780084247000,-500.0,0.00013465,2]
[423397902,1780084247000,-600.0,0.000135,2]
[423397904,1780084247000,-600.0,0.000135,2]
[423397906,1780084247000,-500.0,0.00013563,2]
[423397908,1780084247000,-500.0,0.00013563,2]
[423397910,1780084247000,-214.3,0.00013563,2]
[423397912,1780084247000,-500.0,0.00013563,2]
[423397913,1780084247000,-500.0,0.00013563,2]
[423397915,1780084247000,-207.2,0.00013563,2]
[423397857,1780084247000,-652.43,0.00013463,2]
[423397896,1780084247000,-606.57,0.00013465,2]
[423397861,1780084247000,-677.48,0.00013463,2]
[423397801,1780084247000,-500.0,0.00013289,2]
[423397855,1780084247000,-910.32,0.00013463,2]
[423397919,1780084247000,-486.52,0.00013563,2]
[423397803,1780084247000,-500.0,0.00013289,2]
[423397815,1780084247000,-500.0,0.00013289,2]
[423397817,1780084247000,-500.0,0.0001329,2]
[423397804,1780084247000,-500.0,0.00013289,2]
[423397820,1780084247000,-678.0,0.0001329,2]
[423397819,1780084247000,-500.0,0.0001329,2]
[423397822,1780084247000,-166.995035,0.00013293,2]
[423397806,1780084247000,-500.0,0.00013289,2]
[423397808,1780084247000,-500.0,0.00013289,2]
[423397813,1780084247000,-500.0,0.00013289,2]
[423397811,1780084247000,-500.0,0.00013289,2]
[423397810,1780084247000,-500.0,0.00013289,2]
[423397826,1780084247000,-152.0,0.00013298,7]
[423397859,1780084247000,-743.79,0.00013463,2]
[423397824,1780084247000,-152.0,0.00013298,7]
[423397830,1780084247000,-672.48,0.00013462,2]
[423397840,1780084247000,-500.0,0.00013462,2]
[423397842,1780084247000,-733.76,0.00013462,2]
[423397844,1780084247000,-583.62,0.00013462,2]
[423397846,1780084247000,-500.0,0.00013463,2]
[423397848,1780084247000,-1353.93,0.00013463,2]
[423397831,1780084247000,-1190.19,0.00013462,2]
[423397833,1780084247000,-500.0,0.00013462,2]
[423397837,1780084247000,-500.0,0.00013462,2]
[423397849,1780084247000,-1164.9,0.00013463,2]
[423397838,1780084247000,-500.0,0.00013462,2]
[423397835,1780084247000,-501.53,0.00013462,2]
[423397851,1780084247000,-500.0,0.00013463,2]
[423397853,1780084247000,-500.0,0.00013463,2]
[423397828,1780084247000,-821.100533,0.00013395,2]
[423397917,1780084247000,-500.0,0.00013563,2]
[423397932,1780084247000,-678.0,0.00013564,2]
[423397921,1780084247000,-500.0,0.00013564,2]
[423397989,1780084247000,-733.76,0.00013736,2]
[423398001,1780084247000,-500.0,0.00013737,2]
[423397991,1780084247000,-583.62,0.00013736,2]
[423398006,1780084247000,-743.79,0.00013737,2]
[423398004,1780084247000,-652.43,0.00013737,2]
[423398008,1780084247000,-677.48,0.00013737,2]
[423398010,1780084247000,-1517.97,0.00013737,2]
[423398012,1780084247000,-1401.86,0.00013737,2]
[423398014,1780084247000,-11644.4,0.00013737,2]
[423398018,1780084247000,-545.65,0.00013737,2]
[423398016,1780084247000,-1798.09,0.00013737,2]
[423398020,1780084247000,-507.97,0.00013739,2]
[423398024,1780084247000,-1224.6738,0.00013739,2]
[423398030,1780084247000,-786.17,0.00013739,2]
[423398028,1780084247000,-500.0,0.00013739,2]
[423398026,1780084247000,-1811.41,0.00013739,2]
[423398032,1780084247000,-2345.73,0.00013739,2]
[423398034,1780084247000,-500.0,0.00013739,2]
[423398036,1780084247000,-500.0,0.00013739,2]
[423398040,1780084247000,-500.0,0.00013739,2]
[423398041,1780084247000,-606.57,0.00013739,2]
[423398045,1780084247000,-153.3,0.00013837,2]
[423398043,1780084247000,-181.173858,0.0001383,2]
[423398048,1780084247000,-500.0,0.00013837,2]
[423398038,1780084247000,-654.99,0.00013739,2]
[423398050,1780084247000,-500.0,0.00013837,2]
[423398051,1780084247000,-474.24,0.00013837,2]
[423398053,1780084247000,-500.0,0.00013837,2]
[423397920,1780084247000,-500.0,0.00013563,2]
[423398002,1780084247000,-910.32,0.00013737,2]
[423397987,1780084247000,-500.0,0.00013736,2]
[423398022,1780084247000,-500.0,0.00013739,2]
[423397995,1780084247000,-1353.93,0.00013737,2]
[423397930,1780084247000,-500.0,0.00013564,2]
[423397999,1780084247000,-493.6,0.00013737,2]
[423397934,1780084247000,-504.53137221,0.00013698,2]
[423397936,1780084247000,-500.0,0.00013698,2]
[423397944,1780084247000,-151.0,0.00013699,2]
[423397938,1780084247000,-432.51601163,0.00013698,2]
[423397948,1780084247000,-2162.807714,0.00013699,2]
[423397940,1780084247000,-2162.807714,0.00013699,2]
[423397949,1780084247000,-151.0,0.00013699,2]
[423397942,1780084247000,-2162.807714,0.00013699,2]
[423397953,1780084247000,-151.0,0.00013699,2]
[423397951,1780084247000,-151.0,0.00013699,2]
[423397967,1780084247000,-151.0,0.00013699,2]
[423397973,1780084247000,-151.09,0.000137,2]
[423397971,1780084247000,-233.15858,0.00013699,2]
[423397945,1780084247000,-2162.807714,0.00013699,2]
[423397969,1780084247000,-151.0,0.00013699,2]
[423397997,1780084247000,-1164.9,0.00013737,2]
[423397957,1780084247000,-554.175127,0.00013699,2]
[423397993,1780084247000,-500.0,0.00013737,2]
[423397983,1780084247000,-500.0,0.00013736,2]
[423397981,1780084247000,-501.53,0.00013736,2]
[423397979,1780084247000,-500.0,0.00013736,2]
[423397959,1780084247000,-554.175127,0.00013699,2]
[423397985,1780084247000,-500.0,0.00013736,2]
[423397975,1780084247000,-672.48,0.00013736,2]
[423397963,1780084247000,-168.352601,0.00013699,2]
[423397965,1780084247000,-151.0,0.00013699,2]
[423397955,1780084247000,-554.175127,0.00013699,2]
[423397977,1780084247000,-1190.19,0.00013736,2]
[423397961,1780084247000,-554.175127,0.00013699,2]
[423398141,1780084248000,-2978.27073837,0.00014175,2]
[423398142,1780084248000,-742.65009385,0.000142,2]
[423398143,1780084248000,-716.15257786,0.000142,2]
[423398136,1780084248000,-500.0,0.00014112,2]